bitfinex-derivatives/quotes_SOLF0:USTF0_20240926
["timestamp","ask_amount","ask_price","bid_price","bid_amount"]
[1727391721600,3.2026,156.1,156.05,9.83]
[1727391722893,3.2026,156.1,156.07,3.2031]
[1727391724003,13.0329,156.09,156.03,6.33025102]
[1727391724198,13.0329,156.09,156.03,14.14178605]
[1727391724391,9.83,156.08,156.03,16.16025102]
[1727391724596,9.83,156.08,156.04,3.2037]
[1727391725399,13.0333,156.07,156.04,3.2037]
[1727391725596,9.83,156.05,156.02,10.64422223]
[1727391725903,9.83,156.04,156.0,10.64603444]
[1727391726104,9.83,156.04,156.0,4.31434845]
[1727391726498,9.83,156.04,156.02,3.204]
[1727391728304,13.0338,156.04,156.01,3.2043]
[1727391742503,3.2038,156.04,156.01,3.2043]
[1727391742910,13.0336,156.05,156.01,3.2043]
[1727391743713,9.83,156.06,156.01,9.83]
[1727391744110,3.2038,156.04,156.0,3.2044]
[1727391745308,13.0338,156.04,156.0,3.2044]
[1727391746315,3.2038,156.04,156.01,3.2044]
[1727391746507,3.2036,156.05,156.01,3.2044]
[1727391749504,3.2038,156.04,156.01,3.2044]
[1727391751611,1.2908,156.13,156.02,9.83]
[1727391752120,9.83,156.08,156.04,3.2037]
[1727391753415,3.2033,156.07,156.04,3.2037]
[1727391753721,3.2033,156.07,156.03,3.2039]
[1727391757926,13.0333,156.07,156.03,3.2039]
[1727391762119,3.2034,156.06,156.03,3.2039]
[1727391770236,1.2908,156.13,156.03,9.83]
[1727391770445,1.2908,156.13,156.07,9.83]
[1727391770638,9.83,156.11,156.07,9.83]
[1727391770834,3.2026,156.1,156.07,9.83]
[1727391771337,3.2028,156.09,156.07,9.83]
[1727391771644,2.7433,156.14,156.08,9.83]
[1727391771843,2.7433,156.14,156.1,9.83]
[1727391771844,1.3661,156.14,156.1,9.83]
[1727391772536,3.2022,156.12,156.09,9.83]
[1727391774545,3.2022,156.12,156.09,13.0327]
[1727391776746,3.202,156.13,156.09,13.0327]
[1727391776949,1.2563,156.2,156.11,13.0322]
[1727391777248,9.83,156.16,156.11,13.0322]
[1727391777746,3.2017,156.15,156.12,3.2021]
[1727391778239,3.2017,156.15,156.12,13.0321]
[1727391779342,3.2013,156.16,156.13,3.2019]
[1727391780249,65.3175547,156.17,156.14,13.0317]
[1727391780552,3.2012,156.17,156.14,13.0317]
[1727391780751,3.2012,156.17,156.14,9.83]
[1727391781542,3.2014,156.16,156.14,9.83]
[1727391781741,3.2014,156.16,156.13,3.2019]
[1727391783554,3.2015,156.15,156.12,3.2021]
[1727391786054,3.2015,156.15,156.12,13.0321]
[1727391787161,3.2015,156.15,156.12,9.83]
[1727391788654,3.2014,156.16,156.12,13.032]
[1727391789556,3.2014,156.16,156.13,9.83]
[1727391790960,2.5959,156.22,156.15,3.2015]
[1727391791162,9.83,156.21,156.16,9.83]
[1727391791556,3.2009,156.19,156.16,13.0312]
[1727391791762,13.777,156.22,156.16,13.0312]
[1727391792257,3.947,156.22,156.17,9.83]
[1727391792458,2.692,156.22,156.17,9.83]
[1727391792756,3.2004,156.21,156.18,3.2009]
[1727391792955,2.692,156.22,156.17,9.83]
[1727391793162,3.2004,156.21,156.17,13.0309]
[1727391793959,3.2004,156.21,156.18,3.2009]
[1727391797062,4.5512,156.22,156.19,13.0306]
[1727391797260,4.5512,156.22,156.2,9.83]
[1727391797261,3.2001,156.22,156.2,9.83]
[1727391799366,74.05959491,156.23,156.2,13.0304]
[1727391800370,3.2001,156.22,156.2,9.83]
[1727391810169,80.68969491,156.23,156.13,3.9357]
[1727391810375,80.68969491,156.23,156.17,9.83]
[1727391810673,3.2006,156.2,156.17,9.83]
[1727391814482,3.2006,156.2,156.17,13.0311]
[1727391814777,3.2006,156.2,156.18,9.83]
[1727391818075,3.2003,156.21,156.18,13.0309]
[1727391820877,3.2006,156.2,156.18,9.83]
[1727391829583,3.2007,156.19,156.16,3.2012]
[1727391829784,3.2007,156.19,156.16,13.0312]
[1727391830186,9.83,156.22,156.13,1.3062]
[1727391830383,72.19369491,156.23,156.14,9.83]
[1727391830384,9.83,156.2,156.14,9.83]
[1727391830984,3.201,156.18,156.14,13.0316]
[1727391832681,3.201,156.18,156.15,3.2015]
[1727391832885,3.201,156.18,156.16,9.83]
[1727391833687,72.19369491,156.23,156.16,13.0313]
[1727391833889,82.02369491,156.23,156.17,9.83]
[1727391834489,3.2007,156.2,156.17,13.0311]
[1727391835385,3.2007,156.19,156.16,3.2012]
[1727391835580,3.2007,156.19,156.16,13.0312]
[1727391838095,72.19369491,156.23,156.18,9.83]
[1727391838785,3.2005,156.21,156.18,13.0309]
[1727391839491,3.2005,156.2,156.18,9.83]
[1727391841191,3.2005,156.2,156.17,13.031]
[1727391846104,3.2007,156.19,156.17,9.83]
[1727391846503,3.2007,156.19,156.16,13.0313]
[1727391848900,3.2007,156.19,156.17,9.83]
[1727391849105,3.2007,156.2,156.17,13.0311]
[1727391850711,6.3967,156.31,156.19,9.83]
[1727391850908,6.3967,156.31,156.14,5.83366397]
[1727391850909,9.83,156.26,156.21,9.83]
[1727391851213,3.2,156.23,156.21,9.83]
[1727391856404,3.2001,156.22,156.19,3.2006]
[1727391856607,3.2001,156.22,156.19,13.0306]
[1727391866317,3.2001,156.22,156.18,3.2008]
[1727391866518,9.83,156.25,156.18,3.2008]
[1727391866519,3.2003,156.21,156.19,9.83]
[1727391870416,3.2003,156.21,156.14,5.79815376]
[1727391870417,3.2003,156.21,156.17,3.201]
[1727391870616,3.2003,156.21,156.18,16.18251785]
[1727391870820,3.2003,156.21,156.18,9.83]
[1727391871823,3.2003,156.21,156.18,13.0309]
[1727391873519,3.2003,156.21,156.14,5.79815376]
[1727391873520,3.2005,156.2,156.17,3.2011]
[1727391873826,3.2005,156.2,156.17,13.0311]
[1727391874131,3.2005,156.2,156.15,13.0314]
[1727391874132,3.2009,156.19,156.15,13.0314]
[1727391874722,3.2009,156.19,156.15,3.2014]
[1727391874925,3.2012,156.17,156.14,4.4948]
[1727391875118,3.2012,156.17,156.14,14.3248]
[1727391875526,3.201,156.18,156.14,14.3248]
[1727391876030,3.201,156.18,156.14,13.0317]
[1727391876421,3.2011,156.17,156.14,13.0317]
[1727391877826,3.201,156.18,156.14,13.0317]
[1727391878023,9.83,156.22,156.1,2.5617]
[1727391878227,9.83,156.22,156.17,9.83]
[1727391878941,3.2006,156.2,156.17,9.83]
[1727391880338,3.2007,156.19,156.17,9.83]
[1727391884038,3.2005,156.2,156.17,13.0311]
[1727391884433,3.2005,156.2,156.18,9.83]
[1727391885035,3.2007,156.19,156.16,13.0312]
[1727391887836,3.2005,156.2,156.17,13.0311]
[1727391888032,3.9473,156.25,156.19,9.83]
[1727391888240,3.2002,156.22,156.19,13.0305]
[1727391888543,13.7773,156.25,156.19,9.83]
[1727391889041,3.2002,156.22,156.19,9.83]
[1727391889836,3.2002,156.22,156.19,13.0306]
[1727391893450,3.2002,156.22,156.19,3.2006]
[1727391893744,3.2002,156.22,156.19,13.0306]
[1727391903749,3.2003,156.21,156.19,13.0306]
[1727391904949,3.2006,156.2,156.16,2.6347]
[1727391905148,3.2006,156.2,156.17,20.5053367]
[1727391905359,3.2006,156.2,156.17,13.031]
[1727391908055,3.2004,156.21,156.17,13.031]
[1727391908355,3.2004,156.21,156.19,9.83]
[1727391909560,3.2001,156.22,156.19,13.0307]
[1727391909747,3.9473,156.25,156.19,13.0307]
[1727391909948,3.2,156.23,156.2,3.2005]
[1727391910355,13.7773,156.25,156.19,9.83]
[1727391911354,9.83,156.23,156.18,9.83]
[1727391911556,9.83,156.22,156.16,1.2964]
[1727391911748,3.201,156.18,156.14,3.2017]
[1727391911955,3.2154034,156.21,156.11,2.6763]
[1727391912262,9.83,156.19,156.14,9.83]
[1727391912555,9.83,156.22,156.17,9.83]
[1727391912952,9.83,156.22,156.17,13.0311]
[1727391912953,3.2007,156.2,156.17,13.0311]
[1727391913461,9.83,156.22,156.17,9.83]
[1727391914363,3.2008,156.19,156.17,9.84]
[1727391918659,3.2008,156.19,156.15,3.2014]
[1727391919058,9.84,156.2,156.11,1.3397]
[1727391919264,9.84,156.17,156.12,20.52178064]
[1727391919453,9.84,156.18,156.13,16.19370738]
[1727391919760,3.2012,156.17,156.13,13.0418]
[1727391920154,3.2012,156.17,156.13,9.84]
[1727391920862,3.2012,156.17,156.13,13.0418]
[1727391921455,3.2012,156.17,156.13,3.2018]
[1727391921659,3.2012,156.17,156.13,13.0418]
[1727391922462,3.2012,156.17,156.14,9.84]
[1727391923861,3.2012,156.17,156.14,13.0417]
[1727391925861,9.84,156.19,156.14,9.84]
[1727391926559,3.2013,156.17,156.14,9.84]
[1727391927160,3.2015,156.16,156.12,3.2021]
[1727391927366,3.2015,156.16,156.14,9.84]
[1727391931064,3.2012,156.17,156.14,13.0417]
[1727391931268,3.2012,156.17,156.14,3.2017]
[1727391931567,3.2012,156.17,156.15,9.84]
[1727391931964,3.2012,156.17,156.14,3.2017]
[1727391932169,3.2012,156.17,156.15,9.84]
[1727391932468,3.2013,156.16,156.15,9.84]
[1727391932669,9.84,156.17,156.08,62.02940028]
[1727391932859,9.84,156.16,156.11,9.84]
[1727391933569,3.2019,156.14,156.11,9.84]
[1727391934967,3.2019,156.14,156.11,13.0423]
[1727391935379,3.2019,156.13,156.11,9.84]
[1727391935968,3.2022,156.12,156.1,9.84]
[1727391937069,3.202,156.13,156.1,13.0425]
[1727391941775,3.2022,156.12,156.1,9.84]
[1727391943380,3.2022,156.12,156.09,3.2027]
[1727391943573,3.2022,156.12,156.09,13.0427]
[1727391943972,3.2023,156.11,156.08,3.2028]
[1727391944172,3.2023,156.11,156.08,13.0428]
[1727391946078,13.0422,156.12,156.09,3.2026]
[1727391946273,9.84,156.14,156.09,9.84]
[1727391947885,3.202,156.13,156.1,3.2025]
[1727391952377,13.0422,156.12,156.09,3.2027]
[1727391956073,1.3024,156.15,156.09,9.84]
[1727391956274,1.3024,156.15,156.11,9.84]
[1727391956480,1.3024,156.15,156.1,9.84]
[1727391956680,11.1424,156.15,156.1,9.84]
[1727391957483,3.2019,156.14,156.11,3.2023]
[1727391960681,3.2019,156.14,156.1,9.84]
[1727391961587,3.2019,156.14,156.11,3.2022]
[1727391963181,3.202,156.13,156.1,3.2025]
[1727391963687,3.2022,156.12,156.09,13.0427]
[1727391964082,3.2027,156.1,156.07,6.33441678]
[1727391964283,13.0427,156.1,156.07,3.2031]
[1727391965181,13.0427,156.1,156.06,9.84]
[1727391965182,9.84,156.1,156.06,9.84]
[1727391965389,3.2028,156.09,156.06,3.2033]
[1727391970585,3.27095457,156.13,156.06,9.84]
[1727391970586,3.2027,156.1,156.06,9.84]
[1727391970791,2.6422,156.14,156.07,9.84]
[1727391970990,2.6422,156.14,156.1,9.84]
[1727391971191,11.1424,156.15,156.1,9.84]
[1727391971598,9.84,156.13,156.07,9.84]
[1727391971889,1.3024,156.15,156.07,9.84]
[1727391971890,9.84,156.12,156.07,9.84]
[1727391972194,3.2025,156.11,156.07,13.043]
[1727391973190,3.2026,156.1,156.07,13.043]
[1727391974891,3.2024,156.11,156.07,13.043]
[1727391976192,3.2022,156.12,156.08,9.84]
[1727391976996,3.2022,156.12,156.09,3.2026]
[1727391977397,11.1424,156.15,156.1,9.84]
[1727391977694,9.84,156.15,156.11,9.84]
[1727391978690,3.2018,156.14,156.11,13.0422]
[1727391985301,3.2021,156.13,156.1,3.2025]
[1727391985604,3.2021,156.13,156.1,9.84]
[1727391986506,3.2021,156.13,156.1,13.0424]
[1727391987603,3.2018,156.14,156.11,3.2023]
[1727391993305,1.339,156.19,156.13,9.84]
[1727391993510,11.179,156.19,156.13,9.84]
[1727391993710,9.84,156.17,156.13,9.84]
[1727391993912,3.2015,156.16,156.13,13.0418]
[1727392003122,9.84,156.17,156.12,9.84]
[1727392004122,3.2018,156.14,156.12,9.84]
[1727392004512,9.84,156.17,156.12,9.84]
[1727392004714,3.2016,156.15,156.12,9.84]
[1727392004918,9.84,156.17,156.12,9.84]
[1727392008028,3.2017,156.15,156.12,9.84]
[1727392009320,3.2018,156.14,156.12,9.84]
[1727392009517,3.2018,156.14,156.11,3.2022]
[1727392009727,3.2018,156.14,156.11,13.0422]
[1727392018030,3.202,156.13,156.1,13.0425]
[1727392020530,3.2022,156.12,156.1,9.84]
[1727392022130,3.202,156.13,156.1,13.0425]
[1727392022329,9.84,156.17,156.12,9.84]
[1727392022736,9.84,156.17,156.11,13.0422]
[1727392023830,3.2018,156.14,156.11,13.0422]
[1727392025729,3.2012,156.17,156.12,9.84]
[1727392026035,9.84,156.18,156.12,9.84]
[1727392026932,9.84,156.18,156.12,13.0421]
[1727392027431,3.2015,156.16,156.12,13.0421]
[1727392027832,9.84,156.18,156.12,13.0421]
[1727392028030,3.2015,156.16,156.12,13.0421]
[1727392029632,3.2012,156.17,156.14,13.0417]
[1727392029936,1.339,156.19,156.15,9.84]
[1727392030434,11.179,156.19,156.15,9.84]
[1727392030735,3.2011,156.17,156.13,13.0418]
[1727392031325,9.84,156.16,156.12,3.2021]
[1727392031527,9.84,156.16,156.11,4.33560043]
[1727392031936,9.84,156.16,156.1,9.84]
[1727392032733,3.2018,156.14,156.11,9.56882978]
[1727392032933,3.2018,156.14,156.11,3.2022]
[1727392043140,3.2016,156.15,156.11,3.2022]
[1727392044643,3.2017,156.14,156.12,6.37249649]
[1727392044840,3.2017,156.14,156.11,3.2022]
[1727392045037,3.2017,156.14,156.12,6.3715352]
[1727392045240,3.2017,156.14,156.11,3.2022]
[1727392045439,3.2017,156.14,156.12,6.37246402]
[1727392045641,3.2017,156.14,156.11,3.2022]
[1727392045839,3.2017,156.14,156.12,6.37243527]
[1727392046038,3.2017,156.14,156.11,3.2022]
[1727392046446,3.2017,156.14,156.12,6.37283363]
[1727392046639,3.2017,156.14,156.11,3.2022]
[1727392049940,1.339,156.19,156.12,20.55139971]
[1727392050147,1.339,156.19,156.13,10.71139971]
[1727392050448,9.84,156.18,156.14,9.84]
[1727392051044,3.2011,156.17,156.14,9.84]
[1727392051842,3.2011,156.17,156.13,13.0419]
[1727392052042,3.2013,156.16,156.14,6.36909742]
[1727392052242,9.84,156.15,156.1,9.84]
[1727392052447,9.84,156.15,156.11,10.71172705]
[1727392052649,9.84,156.15,156.12,6.37173726]
[1727392052849,9.84,156.15,156.1,9.84]
[1727392053045,9.84,156.15,156.11,10.71228835]
[1727392053254,9.84,156.15,156.1,9.84]
[1727392053454,9.84,156.15,156.11,10.71284356]
[1727392053658,9.84,156.13,156.09,9.84]
[1727392053857,9.84,156.13,156.1,10.71455149]
[1727392054053,9.84,156.13,156.09,9.84]
[1727392054261,3.2023,156.12,156.08,13.0429]
[1727392054958,3.2023,156.12,156.09,6.3744842]
[1727392055159,3.2023,156.12,156.08,13.0429]
[1727392055355,9.84,156.11,156.07,59.37559757]
[1727392056660,3.2027,156.1,156.07,59.37559757]
[1727392057051,9.84,156.09,156.07,59.37559757]
[1727392057958,9.84,156.08,156.05,3.2035]
[1727392059167,13.0431,156.08,156.04,3.2038]
[1727392059358,9.84,156.07,156.04,3.2038]
[1727392059861,3.2031,156.08,156.04,3.2038]
[1727392059862,13.0431,156.08,156.04,3.2038]
[1727392060158,9.84,156.08,156.05,3.2035]
[1727392060663,3.2028,156.09,156.04,9.84]
[1727392061864,3.2028,156.09,156.06,3.2033]
[1727392062861,9.84,156.07,156.01,1.3062]
[1727392063064,9.84,156.06,156.02,10.69509384]
[1727392063266,9.84,156.06,156.01,11.1462]
[1727392063567,9.84,156.06,156.02,10.69441573]
[1727392063767,9.84,156.06,156.03,3.2039]
[1727392064686,9.84,156.04,156.02,6.3596568]
[1727392064961,9.84,156.04,156.0,6.3596568]
[1727392065155,9.84,156.04,156.01,3.2043]
[1727392074073,13.0438,156.04,156.01,3.2043]
[1727392074271,9.84,156.03,156.01,3.2043]
[1727392076373,9.84,156.03,156.0,3.2045]
[1727392080371,9.84,156.01,155.91,10.64883659]
[1727392080579,9.84,155.99,155.93,9.84]
[1727392080781,2.6105,156.02,155.94,9.84]
[1727392081089,9.84,156.0,155.94,9.84]
[1727392081379,9.84,156.0,155.97,3.2051]
[1727392082272,13.0446,156.0,155.97,3.2051]
[1727392083876,13.0446,156.0,155.96,3.2054]
[1727392084181,9.84,155.97,155.9,4.59465154]
[1727392084377,9.84,155.97,155.92,9.84]
[1727392084578,9.84,155.97,155.94,3.2058]
[1727392094879,9.84,155.97,155.92,9.84]
[1727392095577,9.84,155.97,155.94,3.2057]
[1727392096872,9.84,155.97,155.92,9.84]
[1727392097074,13.0452,155.97,155.93,3.206]
[1727392099774,13.0454,155.96,155.92,3.2062]
[1727392100383,3.2057,155.95,155.91,3.2063]
[1727392100582,13.0457,155.95,155.91,3.2063]
[1727392100977,13.0457,155.95,155.92,3.2062]
[1727392102081,3.2057,155.95,155.92,3.2062]
[1727392102280,13.0455,155.96,155.92,3.2062]
[1727392102476,3.9581,156.02,155.94,9.84]
[1727392102682,9.84,155.99,155.95,9.84]
[1727392102885,13.0449,155.99,155.95,9.84]
[1727392103083,9.84,155.98,155.94,3.2057]
[1727392103280,13.0451,155.98,155.94,3.2057]
[1727392103475,9.84,155.98,155.94,9.84]
[1727392104199,9.84,155.98,155.95,3.2055]
[1727392105288,13.045,155.98,155.95,3.2055]
[1727392108281,9.84,155.97,155.94,3.2057]
[1727392108687,9.84,155.96,155.91,9.84]
[1727392109079,9.84,155.96,155.9,1.331]
[1727392109279,9.84,155.95,155.83,6.4162]
[1727392109480,9.84,155.93,155.85,1.339]
[1727392109684,9.84,155.88,155.84,9.84]
[1727392109885,9.84,155.88,155.75,385.22224419]
[1727392109886,9.84,155.9,155.85,9.84]
[1727392110087,12.5057,155.92,155.86,9.84]
[1727392110294,2.6657,155.92,155.86,9.84]
[1727392110592,12.5057,155.92,155.86,9.84]
[1727392110783,9.84,155.91,155.86,9.84]
[1727392110991,9.84,155.91,155.88,3.2069]
[1727392111289,1.3061,155.92,155.86,9.84]
[1727392111489,1.3061,155.92,155.88,9.84]
[1727392111791,11.1461,155.92,155.89,3.2068]
[1727392112389,14.3524,155.92,155.89,3.2068]
[1727392113284,9.84,155.91,155.89,3.2068]
[1727392113489,9.84,155.91,155.88,3.2071]
[1727392114292,9.84,155.91,155.89,3.2068]
[1727392115192,11.1461,155.92,155.89,3.2068]
[1727392117199,14.3524,155.92,155.89,3.2068]
[1727392119202,3.2065,155.91,155.88,3.207]
[1727392121097,14.3524,155.92,155.88,3.207]
[1727392122100,11.1461,155.92,155.87,9.84]
[1727392122902,11.1461,155.92,155.89,3.2067]
[1727392124099,14.3524,155.92,155.89,3.2067]
[1727392124498,11.1461,155.92,155.88,3.207]
[1727392125004,11.1461,155.92,155.86,9.84]
[1727392125905,14.3525,155.92,155.88,3.2069]
[1727392126199,14.3525,155.92,155.87,9.84]
[1727392127904,14.3525,155.92,155.89,3.2068]
[1727392129099,1.3061,155.92,155.9,3.2065]
[1727392129507,1.3061,155.92,155.83,6.34447516]
[1727392129508,9.84,155.91,155.83,6.34447516]
[1727392129808,9.84,155.9,155.83,9.84]
[1727392130031,3.207,155.89,155.85,3.2076]
[1727392130307,9.84,155.89,155.85,3.2076]
[1727392130507,13.047,155.89,155.85,3.2076]
[1727392131298,9.84,155.89,155.83,9.84]
[1727392132009,3.2071,155.88,155.84,3.2078]
[1727392133006,13.0469,155.89,155.85,3.2077]
[1727392133204,13.0469,155.89,155.83,9.84]
[1727392133408,3.2069,155.89,155.85,9.84]
[1727392133606,9.84,155.9,155.85,9.84]
[1727392134307,1.3061,155.92,155.81,3.23834591]
[1727392134515,9.84,155.91,155.86,9.84]
[1727392134709,1.3061,155.92,155.88,9.84]
[1727392135312,1.362,155.94,155.89,9.84]
[1727392135511,1.362,155.94,155.91,9.84]
[1727392135916,4.568,155.94,155.91,13.0464]
[1727392136813,3.2056,155.95,155.91,13.0464]
[1727392137117,9.84,155.95,155.92,3.2062]
[1727392137310,1.2586,155.97,155.92,3.2062]
[1727392137510,13.0456,155.96,155.92,3.2062]
[1727392137910,13.0456,155.96,155.91,9.84]
[1727392138111,11.0986,155.97,155.93,9.84]
[1727392138308,1.2586,155.97,155.93,9.84]
[1727392139312,1.2586,155.97,155.94,3.2057]
[1727392139613,9.84,156.0,155.94,9.84]
[1727392140016,74.17678692,155.99,155.95,3.2056]
[1727392140413,70.97188692,155.99,155.94,9.84]
[1727392140618,70.97188692,155.99,155.96,9.84]
[1727392141212,70.97188692,155.99,155.95,9.84]
[1727392141615,70.97188692,155.99,155.96,9.84]
[1727392142313,70.97188692,155.99,155.97,3.2052]
[1727392142520,3.2045,156.01,155.96,9.84]
[1727392142819,13.0445,156.01,155.96,9.84]
[1727392143013,13.0445,156.01,155.97,3.2051]
[1727392143219,13.0445,156.01,155.96,9.84]
[1727392143417,3.2045,156.01,155.96,9.84]
[1727392143616,9.84,156.01,155.98,3.2049]
[1727392143917,12.4921,156.03,155.97,9.84]
[1727392144322,15.6961,156.03,155.99,3.2046]
[1727392144621,96.21,156.12,155.99,9.84]
[1727392144819,96.21,156.12,156.0,9.84]
[1727392144820,9.84,156.05,156.0,9.84]
[1727392145015,3.2038,156.04,156.0,13.0444]
[1727392145419,3.2038,156.04,156.0,9.84]
[1727392146519,3.2036,156.05,156.01,3.2043]
[1727392146716,9.84,156.06,156.0,9.84]
[1727392146924,70.92981261,156.08,156.0,9.84]
[1727392147219,70.92981261,156.08,155.94,14.5479774]
[1727392147220,9.84,156.07,156.03,3.2039]
[1727392147647,3.2033,156.07,156.03,3.2039]
[1727392147823,80.76981261,156.08,156.04,3.2036]
[1727392148125,74.13281261,156.08,156.05,9.84]
[1727392149323,9.84,156.07,155.97,10.66795076]
[1727392149529,9.84,156.07,156.01,9.84]
[1727392149822,9.84,156.07,156.02,9.84]
[1727392150018,70.92981261,156.08,156.02,9.84]
[1727392150212,80.76981261,156.08,156.02,9.84]
[1727392150418,83.97281261,156.08,156.04,3.2036]
[1727392150720,83.97281261,156.08,156.04,13.0436]
[1727392152027,9.84,156.06,155.95,10.66795076]
[1727392152220,9.84,156.06,156.01,9.84]
[1727392152417,3.2036,156.05,156.01,13.0443]
[1727392152823,9.84,156.06,156.01,13.0443]
[1727392153725,3.204,156.03,155.99,3.2046]
[1727392153928,9.84,156.03,155.99,3.2046]
[1727392154831,3.2043,156.02,155.99,3.2046]
[1727392155130,9.84,156.03,155.99,3.2046]
[1727392155350,13.0441,156.03,155.99,3.2046]
[1727392156022,3.2041,156.03,155.99,3.2046]
[1727392157428,3.2042,156.02,155.99,3.2046]
[1727392157627,9.84,156.04,155.98,3.205]
[1727392158135,3.2044,156.02,155.98,3.205]
[1727392158659,9.84,156.02,155.97,3.2051]
[1727392158832,9.84,156.02,155.97,13.0451]
[1727392159033,3.2045,156.01,155.97,13.0451]
[1727392159634,3.2045,156.01,155.98,3.205]
[1727392160737,3.2046,156.0,155.96,9.84]
[1727392160939,9.84,156.01,155.94,2.5531]
[1727392161237,9.84,156.0,155.94,12.3931]
[1727392161636,9.84,156.01,155.96,9.84]
[1727392162746,13.0444,156.01,155.98,3.2049]
[1727392163741,3.2042,156.02,155.98,13.0449]
[1727392164938,11.1431,156.03,155.94,2.5531]
[1727392165146,11.1431,156.03,155.97,9.84]
[1727392165944,11.1431,156.03,155.98,9.84]
[1727392166146,3.2042,156.02,155.98,13.0448]
[1727392169352,3.2042,156.02,155.99,3.2048]
[1727392169553,13.0442,156.02,155.99,3.2048]
[1727392173056,4.5072,156.03,156.0,3.2046]
[1727392173255,9.84,156.04,156.0,3.2046]
[1727392174856,3.204,156.03,156.0,3.2046]
[1727392175858,9.84,156.05,156.01,3.2044]
[1727392176358,13.0437,156.05,156.01,3.2044]
[1727392176548,9.84,156.05,156.01,3.2044]
[1727392177756,3.2038,156.04,156.01,3.2044]
[1727392178762,1.2734,156.07,156.02,9.84]
[1727392178957,70.92981261,156.08,156.03,9.84]
[1727392179166,74.13291261,156.08,156.04,3.2036]
[1727392179361,70.92981261,156.08,156.03,9.84]
[1727392180261,70.92981261,156.08,155.94,14.49193589]
[1727392180262,9.84,156.07,155.94,14.49193589]
[1727392180457,9.84,156.07,156.02,9.84]
[1727392180959,13.0432,156.07,156.03,3.2038]
[1727392181560,13.0432,156.07,156.04,3.2037]
[1727392181761,9.84,156.07,156.04,3.2037]
[1727392182162,74.13281261,156.08,156.04,3.2037]
[1727392183864,3.2032,156.07,156.04,3.2037]
[1727392185761,74.13281261,156.08,156.04,3.2037]
[1727392186670,3.2032,156.07,156.04,3.2037]
[1727392187768,3.2034,156.06,156.03,3.2039]
[1727392188165,9.84,156.07,156.0,3.2044]
[1727392188370,9.84,156.06,156.02,9.84]
[1727392189765,13.0435,156.06,156.03,3.204]
[1727392190365,70.92981261,156.08,156.03,9.84]
[1727392190564,9.84,156.07,156.03,9.84]
[1727392190865,9.84,156.07,156.02,9.84]
[1727392191471,3.2034,156.06,156.03,3.2039]
[1727392192270,3.2037,156.05,155.95,10.62404533]
[1727392192467,3.2037,156.05,155.95,4.30565599]
[1727392192668,3.2037,156.05,156.02,9.84]
[1727392192863,9.84,156.07,156.03,3.204]
[1727392192864,3.2034,156.06,156.03,3.204]
[1727392194871,3.2034,156.06,156.03,13.044]
[1727392197674,3.2034,156.06,156.03,3.204]